bitfinex-derivatives/quotes_BTCF0:USTF0_20251023
["timestamp","ask_amount","ask_price","bid_price","bid_amount"]
[1761245178174,0.0904464,110550.0,110540.0,0.68224729]
[1761245179259,0.0904464,110550.0,110540.0,0.59179929]
[1761245179465,0.1348264,110550.0,110540.0,0.59179929]
[1761245179868,0.1348264,110550.0,110540.0,0.42988]
[1761245180570,0.1348264,110550.0,110540.0,0.520328]
[1761245180972,0.1126664,110550.0,110540.0,0.520328]
[1761245181174,0.1126664,110550.0,110540.0,0.68224729]
[1761245181572,0.0904464,110550.0,110540.0,0.68224729]
[1761245183373,0.090439,110560.0,110550.0,0.1488894]
[1761245183677,0.134479,110560.0,110550.0,0.73801]
[1761245184375,0.134479,110560.0,110550.0,0.8284499]
[1761245184879,0.136479,110560.0,110550.0,0.8284499]
[1761245185375,0.136479,110560.0,110550.0,0.8294499]
[1761245186164,0.136479,110560.0,110550.0,0.73901]
[1761245186372,0.136479,110560.0,110550.0,0.8294498]
[1761245187180,0.114419,110560.0,110550.0,0.8294498]
[1761245188181,0.114419,110560.0,110550.0,0.73901]
[1761245189168,0.137279,110560.0,110550.0,0.73901]
[1761245189984,0.114419,110560.0,110550.0,0.73901]
[1761245190377,0.114419,110560.0,110550.0,0.8294499]
[1761245190585,0.092439,110560.0,110550.0,0.8294499]
[1761245190881,0.137709,110560.0,110550.0,0.99136919]
[1761245191081,0.137709,110560.0,110550.0,0.90092929]
[1761245192483,0.137709,110560.0,110550.0,0.99136909]
[1761245192988,0.114849,110560.0,110550.0,0.99136919]
[1761245193473,0.092439,110560.0,110550.0,0.99136919]
[1761245194071,0.1036699,110550.0,110540.0,0.38646]
[1761245194272,0.1489562,110530.0,110520.0,0.72198005]
[1761245194476,0.31087549,110530.0,110520.0,0.72198005]
[1761245195679,0.33489978,110530.0,110520.0,0.72198005]
[1761245195878,0.33489978,110530.0,110520.0,0.72898005]
[1761245196079,0.33489978,110530.0,110520.0,0.73298005]
[1761245200582,0.33487748,110530.0,110520.0,0.73298005]
[1761245201489,0.33487748,110530.0,110520.0,0.37218005]
[1761245203377,0.31087549,110530.0,110520.0,0.37218005]
[1761245203690,0.29764549,110530.0,110520.0,0.74618005]
[1761245204788,0.31109171,110530.0,110520.0,0.37218005]
[1761245205489,0.29786171,110530.0,110520.0,0.74618005]
[1761245206293,0.31109171,110530.0,110520.0,0.37218005]
[1761245207397,0.31109171,110530.0,110520.0,0.38538005]
[1761245208598,0.31109171,110530.0,110520.0,0.37218005]
[1761245210900,0.31109171,110530.0,110520.0,0.73298005]
[1761245211105,0.31109171,110530.0,110520.0,0.74618005]
[1761245211300,0.31109171,110530.0,110520.0,0.37218005]
[1761245212806,0.1489562,110530.0,110520.0,0.37218005]
[1761245213007,0.31109171,110530.0,110520.0,0.37218005]
[1761245213203,0.1489562,110530.0,110520.0,0.37218005]
[1761245213405,0.47322722,110530.0,110520.0,0.01108005]
[1761245213707,0.1476744,110520.0,110510.0,0.0453]
[1761245213900,0.47194542,110520.0,110510.0,0.36406]
[1761245214107,0.49315142,110520.0,110510.0,0.36406]
[1761245214504,0.49324515,110520.0,110510.0,0.36406]
[1761245214906,0.49324515,110520.0,110510.0,0.37506]
[1761245215096,0.49324515,110520.0,110510.0,0.38383842]
[1761245215406,0.49324515,110520.0,110510.0,0.37506]
[1761245215608,0.50524515,110520.0,110510.0,0.3691]
[1761245216411,0.1476826,110510.0,110500.0,0.73392468]
[1761245216600,0.47204735,110510.0,110500.0,0.73392468]
[1761245216803,0.49323126,110510.0,110500.0,0.05432468]
[1761245217004,0.87803325,110510.0,110500.0,0.37312468]
[1761245217411,0.87803325,110510.0,110500.0,0.03228468]
[1761245217412,1.27803325,110510.0,110500.0,0.03228468]
[1761245217605,1.27803325,110510.0,110500.0,0.00902468]
[1761245218114,1.60183325,110510.0,110500.0,0.00902468]
[1761245218315,0.1476908,110500.0,110490.0,0.4061]
[1761245218515,0.47205555,110500.0,110490.0,0.4061]
[1761245218716,0.49323946,110500.0,110490.0,0.4061]
[1761245219111,0.16896844,110500.0,110490.0,0.4061]
[1761245219416,0.47205555,110500.0,110490.0,0.4061]
[1761245219716,0.49323946,110500.0,110490.0,0.4091]
[1761245219916,0.49323066,110500.0,110490.0,0.4091]
[1761245222209,0.16895964,110500.0,110490.0,0.4091]
[1761245222411,0.47205555,110500.0,110490.0,0.4091]
[1761245222611,0.49323066,110500.0,110490.0,0.4091]
[1761245223415,0.1255389,110490.0,110480.0,0.02326]
[1761245223615,0.1255553,110470.0,110460.0,0.41512632]
[1761245223818,0.47208005,110470.0,110460.0,0.41512632]
[1761245224021,0.49326424,110470.0,110460.0,0.41512632]
[1761245224715,0.37193165,110470.0,110460.0,0.42112632]
[1761245225017,0.35074746,110470.0,110460.0,0.06937035]
[1761245225215,1.11154746,110470.0,110460.0,0.02407035]
[1761245225515,0.1477235,110460.0,110450.0,0.40620507]
[1761245225720,0.66982167,110460.0,110450.0,0.40620507]
[1761245225920,0.69100586,110460.0,110450.0,0.40620507]
[1761245226117,0.69100586,110460.0,110450.0,0.38416507]
[1761245226327,0.69100586,110460.0,110430.0,0.1034213]
[1761245226328,0.1477399,110440.0,110430.0,0.72518]
[1761245226518,0.35067833,110440.0,110430.0,0.73414844]
[1761245227024,0.1477399,110440.0,110430.0,0.82468654]
[1761245227223,0.1477399,110440.0,110430.0,0.73414844]
[1761245227424,0.14785035,110440.0,110430.0,0.83757654]
[1761245227612,0.04447045,110440.0,110430.0,0.83757654]
[1761245227926,0.00111045,110440.0,110430.0,0.84557654]
[1761245228518,0.00111045,110440.0,110430.0,1.24357654]
[1761245229823,0.37179073,110470.0,110460.0,0.0453]
[1761245230023,0.1477235,110460.0,110450.0,0.7253]
[1761245230223,0.35066193,110460.0,110450.0,0.7253]
[1761245230623,0.24738331,110460.0,110450.0,0.8290217]
[1761245230824,0.04444488,110460.0,110450.0,0.8290217]
[1761245231324,0.04444488,110460.0,110450.0,0.8320217]
[1761245232425,0.14780838,110460.0,110450.0,0.8320217]
[1761245233022,0.14780838,110460.0,110450.0,0.7283]
[1761245233224,0.13495838,110460.0,110450.0,0.8320217]
[1761245233726,8.488e-05,110460.0,110450.0,0.8320217]
[1761245234113,8.488e-05,110460.0,110450.0,1.1928217]
[1761245234825,0.02228488,110460.0,110450.0,1.1928217]
[1761245235020,0.13495838,110460.0,110450.0,1.1928217]
[1761245235225,0.14780838,110460.0,110450.0,1.1928217]
[1761245235426,8.488e-05,110460.0,110450.0,1.1928217]
[1761245235720,0.14780838,110460.0,110450.0,1.1796217]
[1761245236727,0.35074681,110460.0,110450.0,1.1796217]
[1761245238024,0.14780838,110460.0,110450.0,1.1796217]
[1761245238820,0.13495838,110460.0,110450.0,1.1928217]
[1761245239027,0.04444488,110460.0,110450.0,1.1928217]
[1761245239228,0.13495838,110460.0,110450.0,1.1973217]
[1761245239615,0.14780838,110460.0,110450.0,1.1973217]
[1761245239820,0.14780838,110460.0,110450.0,1.1841217]
[1761245240526,0.14780838,110460.0,110450.0,1.1973217]
[1761245240928,0.13495838,110460.0,110450.0,1.1973217]
[1761245243532,0.14785838,110460.0,110450.0,1.1973217]
[1761245244133,0.35079681,110460.0,110450.0,1.1973217]
[1761245244330,0.75079681,110460.0,110450.0,0.3683]
[1761245244632,0.77192676,110460.0,110450.0,0.0075]
[1761245244831,0.79589484,110460.0,110450.0,0.0075]
[1761245245031,0.79589484,110460.0,110450.0,0.05121]
[1761245245618,0.79589484,110460.0,110450.0,0.1417317]
[1761245245826,0.79589484,110460.0,110450.0,0.1397317]
[1761245246032,0.79589484,110460.0,110450.0,0.04921]
[1761245246230,0.79589484,110460.0,110450.0,0.1397317]
[1761245246530,0.59295641,110460.0,110450.0,0.1397317]
[1761245246835,0.51765573,110460.0,110450.0,0.1397317]
[1761245247426,0.51765573,110460.0,110450.0,0.04921]
[1761245247626,0.51765573,110460.0,110450.0,0.1397317]
[1761245248123,0.54985594,110460.0,110450.0,0.1397317]
[1761245249629,0.18005641,110460.0,110450.0,0.5110417]
[1761245249825,0.48362578,110460.0,110450.0,0.5110417]
[1761245250026,0.34240607,110460.0,110450.0,0.5110417]
[1761245250232,0.20679454,110460.0,110450.0,0.5110417]
[1761245250432,0.29730804,110460.0,110450.0,0.5110417]
[1761245251529,0.23076262,110460.0,110450.0,0.5110417]
[1761245251731,0.20679454,110460.0,110450.0,0.5110417]
[1761245251932,0.29730804,110460.0,110450.0,0.5110417]
[1761245252331,0.32127612,110460.0,110450.0,0.5110417]
[1761245252733,0.48362578,110460.0,110450.0,0.5110417]
[1761245252937,0.51831573,110460.0,110450.0,0.5110417]
[1761245255143,0.50475573,110460.0,110450.0,0.5110417]
[1761245255535,0.48078765,110460.0,110450.0,0.5110417]
[1761245257943,0.15608833,110460.0,110450.0,0.5110417]
[1761245258138,0.13495838,110460.0,110450.0,0.5110417]
[1761245258442,0.4732177,110460.0,110450.0,0.5110417]
[1761245258652,0.49434765,110460.0,110450.0,0.5110417]
[1761245259146,0.16964833,110460.0,110450.0,0.5110417]
[1761245259339,0.4732177,110460.0,110450.0,0.5110417]
[1761245259539,0.49434765,110460.0,110450.0,0.5110417]
[1761245260948,0.48078765,110460.0,110450.0,0.5110417]
[1761245261946,0.02121483,110460.0,110450.0,1.07339136]
[1761245262248,0.20568454,110460.0,110450.0,1.07339136]
[1761245262750,0.16243454,110460.0,110450.0,1.07339136]
[1761245263550,0.4585477,110460.0,110450.0,0.5110417]
[1761245263849,0.24037449,110460.0,110450.0,0.99243136]
[1761245264050,0.20568454,110460.0,110450.0,0.99243136]
[1761245264345,8.488e-05,110460.0,110450.0,0.99243136]
[1761245264551,0.20568454,110460.0,110450.0,0.99243136]
[1761245264951,0.04333488,110460.0,110450.0,0.99243136]
[1761245265251,0.20568454,110460.0,110450.0,0.99243136]
[1761245266457,0.29619804,110460.0,110450.0,0.99243136]
[1761245266655,0.29619804,110460.0,110450.0,0.99247136]
[1761245266861,0.13384838,110460.0,110450.0,0.8301217]
[1761245267058,0.13384838,110460.0,110450.0,0.5110417]
[1761245267258,8.488e-05,110460.0,110450.0,0.8302417]
[1761245268460,0.13384838,110460.0,110450.0,0.8302417]
[1761245269061,8.488e-05,110460.0,110450.0,0.8302417]
[1761245269760,8.488e-05,110460.0,110450.0,1.1910417]
[1761245273455,8.488e-05,110460.0,110450.0,1.35336976]
[1761245274160,8.488e-05,110460.0,110450.0,1.80209179]
[1761245276463,8.488e-05,110460.0,110450.0,1.63976373]
[1761245276663,8.488e-05,110460.0,110450.0,1.80209179]
[1761245278158,0.01285,110480.0,110460.0,0.0905107]
[1761245278363,0.22051806,110480.0,110470.0,0.8292853]
[1761245278564,0.04534,110480.0,110470.0,0.8292853]
[1761245278756,0.04534,110480.0,110470.0,1.1900853]
[1761245279562,0.20766806,110480.0,110470.0,1.09958]
[1761245280356,0.21566806,110480.0,110470.0,1.10058]
[1761245280560,0.05334,110480.0,110470.0,1.10058]
[1761245281566,0.22847806,110480.0,110470.0,0.72689]
[1761245281770,0.22847806,110480.0,110470.0,0.40785]
[1761245282064,0.22847806,110480.0,110470.0,0.72685]
[1761245282761,0.22847806,110480.0,110470.0,0.3618]
[1761245282966,0.25244614,110480.0,110470.0,0.6808]
[1761245283465,0.25244614,110480.0,110470.0,0.72685]
[1761245283864,0.25244614,110480.0,110470.0,0.36605]
[1761245284162,0.09011808,110480.0,110470.0,0.72681]
[1761245284362,0.22847806,110480.0,110470.0,0.72681]
[1761245285468,0.25244614,110480.0,110470.0,0.72681]
[1761245285673,0.26067827,110480.0,110470.0,0.72681]
[1761245287071,0.28474713,110480.0,110470.0,0.7397]
[1761245287570,0.10960907,110480.0,110470.0,0.7397]
[1761245287766,0.25254692,110480.0,110470.0,0.72681]
[1761245287968,0.28474713,110480.0,110470.0,0.72681]
[1761245289871,0.27193713,110480.0,110470.0,0.7397]
[1761245290263,0.28474713,110480.0,110470.0,0.72681]
[1761245294573,0.28474713,110480.0,110470.0,0.7397]
[1761245295671,0.09021886,110480.0,110470.0,0.7397]
[1761245295872,0.23973692,110480.0,110470.0,0.7397]
[1761245296977,0.07740886,110480.0,110470.0,0.7397]
[1761245297270,0.21566806,110480.0,110470.0,0.7397]
[1761245297776,0.23973692,110480.0,110470.0,0.7397]
[1761245298170,0.25254692,110480.0,110470.0,0.7397]
[1761245298371,0.25254692,110480.0,110470.0,0.72681]
[1761245298777,0.28474713,110480.0,110470.0,0.02381]
[1761245298974,1.04554713,110480.0,110470.0,0.001]
[1761245299173,1.09077795,110480.0,110470.0,0.001]
[1761245299372,1.05857774,110480.0,110470.0,0.001]
[1761245299571,1.05857774,110480.0,110470.0,0.04705]
[1761245299878,1.09070595,110480.0,110470.0,0.02381]
[1761245300175,1.09070595,110480.0,110470.0,0.001]
[1761245301165,1.09070595,110480.0,110450.0,0.73031]
[1761245301371,0.22047806,110460.0,110450.0,0.73031]
[1761245302372,0.22047806,110460.0,110450.0,0.73131]
[1761245302973,0.22047806,110460.0,110450.0,0.73031]
[1761245303175,0.22047806,110460.0,110450.0,0.73131]
[1761245304487,0.31099156,110460.0,110450.0,0.73131]
[1761245305978,0.47331962,110460.0,110450.0,0.05155]
[1761245306284,0.91853889,110460.0,110450.0,0.05155]
[1761245306679,1.27933889,110460.0,110450.0,0.05155]
[1761245308585,0.1466517,110450.0,110440.0,0.72487]
[1761245308779,0.30897976,110450.0,110440.0,0.36407]
[1761245309587,0.30897976,110450.0,110440.0,0.36607]
[1761245310574,0.30897976,110450.0,110440.0,0.04711]
[1761245310790,0.66977976,110450.0,110440.0,0.04711]
[1761245310976,0.69090971,110450.0,110440.0,0.04711]
[1761245311988,0.33010971,110450.0,110440.0,0.04711]
[1761245312191,0.30897976,110450.0,110440.0,0.04711]
[1761245312983,0.30897976,110450.0,110440.0,0.40791]
[1761245313183,0.30897976,110450.0,110440.0,0.04711]
[1761245315881,0.30897976,110450.0,110440.0,0.002]
[1761245316089,0.1466598,110440.0,110430.0,0.40591]
[1761245316385,0.1466598,110440.0,110410.0,0.04511]
[1761245316386,0.1466762,110420.0,110410.0,0.04511]
[1761245316592,0.66980426,110420.0,110410.0,0.05867058]
[1761245317781,0.66980426,110420.0,110410.0,0.07502877]
[1761245318591,0.69189406,110420.0,110410.0,0.07902877]
[1761245319093,0.69189406,110420.0,110410.0,0.02035819]
[1761245319391,0.1467008,110390.0,110380.0,0.0496396]
[1761245319588,0.66982886,110390.0,110380.0,0.38211699]
[1761245319791,0.69090592,110390.0,110380.0,0.38211699]
[1761245320090,0.33010592,110390.0,110380.0,0.48916194]
[1761245320290,0.30902886,110390.0,110380.0,0.48916194]
[1761245320487,0.05613,110390.0,110380.0,0.48916194]
[1761245320692,0.02134,110390.0,110380.0,0.50275194]
[1761245320891,0.66982516,110400.0,110390.0,0.1356809]
[1761245321092,0.33008653,110400.0,110390.0,0.14911829]
[1761245321388,0.30902516,110400.0,110390.0,0.50991829]
[1761245321604,0.1333871,110400.0,110390.0,0.4964809]
[1761245321896,0.1466971,110400.0,110390.0,0.4964809]
[1761245322595,0.1476971,110400.0,110390.0,0.4984809]
[1761245323191,0.31002516,110400.0,110390.0,0.04711]
[1761245324396,0.31002516,110400.0,110390.0,0.4568008]
[1761245324987,0.47235322,110400.0,110390.0,0.02501]
[1761245325298,0.67082516,110400.0,110390.0,0.3795928]
[1761245326190,0.83315322,110400.0,110390.0,0.3795528]
[1761245326597,0.83315322,110400.0,110390.0,0.3574528]
[1761245326991,0.67082516,110400.0,110390.0,0.3344428]
[1761245327194,0.85418458,110400.0,110390.0,0.0153628]
[1761245328387,1.25418458,110400.0,110390.0,0.0153628]
[1761245328791,1.41728874,110400.0,110390.0,0.0153628]
[1761245329202,0.1467091,110380.0,110370.0,0.27396602]
[1761245329393,0.83268262,110380.0,110370.0,0.27396602]
[1761245329904,0.83268262,110380.0,110370.0,0.31907602]
[1761245330202,0.83276251,110380.0,110370.0,0.31907602]
[1761245330901,0.83276251,110380.0,110370.0,0.27396602]
[1761245331401,0.83276251,110380.0,110360.0,0.37715013]
[1761245331402,0.1467172,110370.0,110360.0,0.51285553]
[1761245331605,0.30930396,110370.0,110360.0,0.83221553]
[1761245331795,0.30930396,110370.0,110360.0,0.74162013]
[1761245331996,0.30930396,110370.0,110360.0,0.51285563]
[1761245332308,0.30930396,110370.0,110360.0,0.83221563]
[1761245332494,0.30930396,110370.0,110360.0,0.71952013]
[1761245332694,0.30930396,110370.0,110360.0,0.74162013]
[1761245333004,0.1477172,110370.0,110360.0,0.83221563]
[1761245333194,0.31030396,110370.0,110360.0,0.83221563]
[1761245333391,0.31030396,110370.0,110360.0,0.70317]
[1761245333590,0.31030396,110370.0,110360.0,0.02301]
[1761245333902,0.31030396,110370.0,110360.0,0.34245]
[1761245334295,0.1477172,110370.0,110360.0,0.38078886]
[1761245334498,0.31030396,110370.0,110360.0,0.38078886]
[1761245334692,0.0906037,110350.0,110340.0,0.55082513]
[1761245334898,0.0906037,110350.0,110340.0,0.89235513]
[1761245334899,0.29725046,110350.0,110340.0,0.89235513]
[1761245335097,0.1124237,110350.0,110340.0,1.05494189]
[1761245335297,0.21941665,110360.0,110350.0,0.1347637]
[1761245335507,0.31001215,110360.0,110350.0,0.4955637]
[1761245335801,0.31001215,110360.0,110350.0,0.65815046]
[1761245336001,0.31001215,110360.0,110350.0,0.40496]
[1761245336199,0.47259891,110360.0,110350.0,0.72436]
[1761245336401,0.47259891,110360.0,110350.0,0.36356]
[1761245336893,0.47259891,110360.0,110350.0,0.4541637]
[1761245337094,0.31001215,110360.0,110350.0,0.4541637]
[1761245337300,0.31001215,110360.0,110350.0,0.36356]
[1761245337500,0.31401215,110360.0,110350.0,0.4541637]
[1761245338803,0.47659891,110360.0,110350.0,0.34147]
[1761245338999,0.47659891,110360.0,110350.0,0.04416]
[1761245339198,0.52659891,110360.0,110350.0,0.04416]
[1761245339394,0.52659891,110360.0,110350.0,0.36352]
[1761245339608,0.52659891,110360.0,110350.0,0.4541237]
[1761245340100,0.52659891,110360.0,110350.0,0.4955637]
[1761245340304,0.52659891,110360.0,110350.0,0.1347637]
[1761245340502,0.20942539,110360.0,110350.0,0.36352]
[1761245340705,0.53459891,110360.0,110350.0,0.36352]
[1761245340911,0.52259891,110360.0,110350.0,0.4541236]
[1761245341206,0.20142539,110360.0,110350.0,0.4541236]
[1761245341607,0.52659891,110360.0,110350.0,0.4541236]
[1761245342299,0.52659891,110360.0,110350.0,0.8149236]
[1761245342494,0.36401215,110360.0,110350.0,0.8149236]
[1761245343203,0.52659891,110360.0,110350.0,0.36352]
[1761245343408,0.47659891,110360.0,110350.0,0.36352]
[1761245344005,0.52659891,110360.0,110350.0,0.36348]
[1761245344198,0.52659891,110360.0,110350.0,0.04416]
[1761245344398,0.1473537,110350.0,110340.0,0.34000204]
[1761245344595,0.49939608,110350.0,110340.0,0.06207566]
[1761245344902,0.84577226,110350.0,110340.0,0.01791566]
[1761245345106,0.84577226,110350.0,110340.0,0.00453124]
[1761245345307,0.84577226,110350.0,110340.0,0.04869124]
[1761245345510,0.84577226,110350.0,110340.0,0.00453124]
[1761245345511,0.52059874,110350.0,110340.0,0.00453124]
[1761245345702,1.16513226,110350.0,110340.0,0.00453124]
[1761245345902,1.52593226,110350.0,110340.0,0.00453124]
[1761245346103,0.05675,110320.0,110310.0,0.38296907]
[1761245346299,0.14745819,110320.0,110310.0,0.40505907]
[1761245346503,7.989e-05,110320.0,110310.0,0.82146557]
[1761245346807,0.16266665,110320.0,110310.0,0.98405233]
[1761245347010,0.16266665,110320.0,110310.0,1.38405233]
[1761245347305,0.16366665,110320.0,110310.0,1.22146187]
[1761245347809,0.00107989,110320.0,110310.0,1.38404863]
[1761245348513,0.16366665,110320.0,110310.0,1.38404863]
[1761245348709,0.16366665,110320.0,110310.0,1.22146187]
[1761245348912,0.16366665,110320.0,110310.0,1.38404863]
[1761245349504,0.16366665,110320.0,110310.0,1.22146187]
[1761245349703,0.00107989,110320.0,110310.0,0.98404863]
[1761245350400,0.16366665,110320.0,110310.0,0.98404863]
[1761245350610,0.16366665,110320.0,110310.0,1.01302098]
[1761245350911,0.00107989,110320.0,110310.0,1.01302098]
[1761245351104,0.00107989,110320.0,110310.0,1.41302098]
[1761245351711,0.00107989,110320.0,110310.0,1.57560774]
[1761245351999,0.1032993,110340.0,110330.0,0.05053]
[1761245352203,0.0906093,110340.0,110330.0,0.89331676]
[1761245352398,0.0906093,110340.0,110330.0,0.98393276]
[1761245352608,0.25319606,110340.0,110330.0,0.98393276]
[1761245352809,0.27501606,110340.0,110330.0,0.98393276]
[1761245353311,0.27500626,110350.0,110340.0,0.1415578]
[1761245353510,0.20664676,110350.0,110340.0,0.5023578]
[1761245353815,0.30993626,110350.0,110340.0,0.04416]
[1761245354000,0.30993626,110350.0,110340.0,0.40496]
[1761245354407,0.67273626,110350.0,110340.0,0.04416]
[1761245354609,0.134676,110330.0,110320.0,0.41175]
[1761245354814,0.134676,110330.0,110320.0,0.72444]
[1761245354815,0.147366,110330.0,110320.0,0.72444]
[1761245355014,0.30995276,110330.0,110320.0,0.72444]
[1761245355404,0.30995276,110330.0,110320.0,0.8150642]
[1761245355601,0.30995276,110330.0,110320.0,0.97765096]
[1761245355814,0.29726276,110330.0,110320.0,0.98444096]
[1761245356112,0.001,110330.0,110320.0,1.14702772]
[1761245356317,0.001,110330.0,110320.0,1.54702772]
[1761245356504,0.135676,110330.0,110320.0,1.37765096]
[1761245356704,0.148366,110330.0,110320.0,1.37765096]
[1761245357111,0.05775,110330.0,110320.0,1.05817096]
[1761245357610,0.31095276,110330.0,110320.0,1.37761096]
[1761245358011,0.29826276,110330.0,110320.0,1.38440096]
[1761245358205,0.001,110330.0,110320.0,1.38440096]
[1761245359307,0.091616,110330.0,110320.0,1.38440096]
[1761245360414,0.001,110330.0,110320.0,1.38440096]
[1761245360803,0.001,110330.0,110320.0,1.54698772]
[1761245361207,0.001,110330.0,110320.0,1.06496096]
[1761245361412,0.001,110330.0,110320.0,1.38436096]
[1761245361914,0.001,110330.0,110320.0,1.54694772]
[1761245362515,0.091616,110330.0,110320.0,1.54694772]
[1761245363016,0.091616,110330.0,110320.0,1.2217742]
[1761245363313,0.091616,110330.0,110320.0,1.38436096]
[1761245363706,0.001,110330.0,110320.0,1.54694772]
[1761245363913,0.091616,110330.0,110320.0,1.54694772]
[1761245364412,0.091616,110330.0,110320.0,1.38436096]
[1761245365113,0.114036,110330.0,110320.0,1.38436096]
[1761245365317,0.001,110330.0,110320.0,1.38436096]
[1761245365509,0.001,110330.0,110320.0,1.2217742]
[1761245365704,0.001,110330.0,110320.0,1.54694772]
[1761245369405,0.001,110330.0,110320.0,1.55144772]
[1761245370819,0.001,110330.0,110320.0,1.60016975]
[1761245371015,0.17449815,110360.0,110350.0,0.0906001]
[1761245371222,0.36103386,110360.0,110350.0,0.61615686]
[1761245371523,0.1984471,110360.0,110350.0,0.61615686]
[1761245371824,0.1405971,110360.0,110350.0,0.98332686]
[1761245372211,0.1632571,110360.0,110350.0,0.98332686]
[1761245372616,0.1887571,110360.0,110350.0,0.8207401]
[1761245372820,0.36411386,110360.0,110350.0,0.8143701]
[1761245373124,0.38532491,110360.0,110350.0,0.97695726]
[1761245375224,0.35134386,110360.0,110350.0,0.98332726]
[1761245375618,0.1887571,110360.0,110350.0,0.98332726]
[1761245375819,0.1887571,110360.0,110350.0,0.8207405]
[1761245376127,0.2015271,110360.0,110350.0,0.97695726]
[1761245376322,0.2015271,110360.0,110350.0,0.97695686]
[1761245376323,0.36411386,110360.0,110350.0,0.97695686]
[1761245378030,0.2015271,110360.0,110350.0,0.97695686]
[1761245378222,0.1887571,110360.0,110350.0,0.98332686]
[1761245378727,0.35134386,110360.0,110350.0,0.98332686]
[1761245378931,0.1435971,110360.0,110350.0,0.98332686]
[1761245379520,0.1435971,110360.0,110350.0,1.14591362]
[1761245379720,0.053,110360.0,110350.0,1.14591362]
[1761245379928,0.053,110360.0,110350.0,0.98332686]
[1761245380222,0.003,110360.0,110350.0,1.54591362]
[1761245380418,0.003,110360.0,110350.0,1.59463565]
[1761245382025,0.05,110370.0,110360.0,0.0973823]
[1761245382229,0.0905806,110380.0,110370.0,0.1406041]
[1761245382430,0.0905806,110380.0,110370.0,0.98327086]
[1761245382931,0.1405806,110380.0,110370.0,0.98327086]
[1761245383922,0.1632406,110380.0,110370.0,0.98327086]
[1761245384122,0.05,110380.0,110370.0,0.98327086]
[1761245384722,0.064,110380.0,110370.0,0.98427086]
[1761245385129,0.05,110380.0,110370.0,0.98327086]
[1761245385331,0.051,110380.0,110370.0,0.98427086]
[1761245386730,0.0048,110390.0,110380.0,0.1410161]
[1761245386931,0.0048,110390.0,110380.0,0.82698962]
[1761245387132,0.0548,110390.0,110380.0,0.82698962]
[1761245387431,0.190528,110390.0,110380.0,0.82698962]
[1761245387627,0.11273,110390.0,110380.0,1.13955962]
[1761245387828,0.11473,110390.0,110380.0,1.14355962]
[1761245388023,0.205298,110390.0,110380.0,0.82419962]
[1761245388222,0.11473,110390.0,110380.0,1.14351962]
[1761245388427,0.0568,110390.0,110380.0,1.57833661]
[1761245388822,0.0558,110390.0,110380.0,1.41464767]
[1761245389022,0.0558,110390.0,110380.0,1.48889227]
[1761245389730,0.0058,110390.0,110380.0,1.48889227]
[1761245390134,0.1484861,110410.0,110400.0,0.13421]
[1761245390330,0.1984861,110410.0,110400.0,0.97677458]
[1761245391327,0.1984861,110410.0,110400.0,1.33757458]
[1761245391633,0.2084861,110410.0,110400.0,1.33857458]
[1761245392231,0.2084861,110410.0,110400.0,0.97777458]
[1761245393030,0.1984861,110410.0,110400.0,0.97677458]
[1761245393335,0.2004861,110410.0,110400.0,0.97677458]
[1761245393532,0.10993,110410.0,110400.0,0.98314458]
[1761245393728,0.052,110410.0,110400.0,0.82366]
[1761245393924,0.1864723,110410.0,110400.0,0.98614458]
[1761245394534,0.1844723,110410.0,110400.0,0.98614458]
[1761245394930,0.1844723,110410.0,110400.0,0.81729]
[1761245394931,0.1971123,110410.0,110400.0,0.81729]
[1761245395131,0.35959688,110410.0,110400.0,0.81733]
[1761245395333,0.35959688,110410.0,110400.0,0.81729]
[1761245395937,0.1971123,110410.0,110400.0,0.81729]
[1761245396325,0.1971123,110410.0,110400.0,0.72673]
[1761245396527,0.35959688,110410.0,110400.0,0.72669]
[1761245396732,0.35959688,110410.0,110400.0,0.8172508]
[1761245397132,0.35959688,110410.0,110400.0,0.40745]
[1761245397338,0.35959688,110410.0,110400.0,0.72669]
[1761245397538,0.35959688,110410.0,110400.0,0.40745]
[1761245397738,0.75959688,110410.0,110400.0,0.3862]
[1761245397933,0.76059688,110410.0,110400.0,0.70244]
[1761245398134,0.76059688,110410.0,110400.0,0.70544]
[1761245398824,0.5981123,110410.0,110400.0,0.72783]
[1761245399040,0.1981123,110410.0,110400.0,0.72783]
[1761245399240,0.1981123,110410.0,110400.0,0.8183912]
[1761245400845,0.1981123,110410.0,110400.0,0.98087578]
[1761245401137,0.1981123,110410.0,110400.0,0.8183912]
[1761245401639,0.1854723,110410.0,110400.0,0.8251812]
[1761245401939,0.1636423,110410.0,110400.0,0.98766578]
[1761245402332,0.1415523,110410.0,110400.0,0.98766578]
[1761245402534,0.1854723,110410.0,110400.0,0.8251812]
[1761245402735,0.1854723,110410.0,110400.0,0.98766578]
[1761245402934,0.051,110410.0,110400.0,0.98766578]
[1761245403835,0.1481138,110410.0,110400.0,0.8183912]
[1761245404034,0.1481138,110410.0,110400.0,0.40859]
[1761245404239,0.36059838,110410.0,110400.0,0.818432]
[1761245404440,0.1981138,110410.0,110400.0,0.818432]
[1761245406141,0.1981138,110410.0,110400.0,0.72787]
[1761245406942,0.1981138,110410.0,110400.0,0.40859]
[1761245407145,0.1981138,110410.0,110400.0,0.72791]
[1761245407444,0.1981138,110410.0,110400.0,0.818471]
[1761245408547,0.051,110410.0,110400.0,0.98732558]
[1761245408846,0.1481144,110410.0,110400.0,0.72791]
[1761245409048,0.1481144,110410.0,110400.0,0.8184727]
[1761245409343,0.1854744,110410.0,110400.0,0.98095728]
[1761245409642,0.1854744,110410.0,110400.0,0.98774728]
[1761245410742,0.1981144,110410.0,110400.0,0.8184726]
[1761245411443,0.1981144,110410.0,110400.0,0.98095718]
[1761245412140,0.1981144,110410.0,110400.0,0.8184726]
[1761245415749,0.22208559,110410.0,110400.0,0.8184726]
[1761245416143,0.22208559,110410.0,110400.0,0.98095718]
[1761245416546,0.20944559,110410.0,110400.0,0.98774718]
[1761245417552,0.1854744,110410.0,110400.0,0.98774718]
[1761245418050,0.001,110410.0,110400.0,0.98774718]
[1761245418952,0.0915544,110410.0,110400.0,0.98774718]
[1761245419641,0.1481144,110410.0,110400.0,0.8184726]
[1761245419842,0.1481144,110410.0,110400.0,0.98095718]
[1761245420145,0.1354744,110410.0,110400.0,0.98095718]
[1761245420346,0.1354744,110410.0,110400.0,0.98774718]
[1761245420654,0.31059898,110410.0,110400.0,0.04779]
[1761245420853,0.33457017,110410.0,110400.0,0.36695]
[1761245421152,0.36669838,110410.0,110400.0,0.36695]
[1761245421847,0.2042138,110410.0,110400.0,0.72775]
[1761245422054,0.2042138,110410.0,110400.0,0.98079718]
[1761245422355,0.17208559,110410.0,110400.0,0.8183126]
[1761245422653,0.17208559,110410.0,110400.0,0.72775]